fUST/lending_fUST_20250118
["ID","MTS","AMOUNT","RATE_DAILY","PERIOD"]
[349361725,1737135355234,1000.0,0.00025,120]
[349361736,1737135597941,158.897959,0.00013973,2]
[349361834,1737136232019,-500.0,0.00019864,2]
[349361836,1737136232029,-500.0,0.00020786,7]
[349361838,1737136232038,-216.1306,0.00020893,2]
[349361840,1737136232048,-7815.3757355,0.00021048,2]
[349361842,1737136232058,-300.0,0.00021816,2]
[349361844,1737136232067,-3000.0,0.00021817,2]
[349361846,1737136232077,-179.97689876,0.00021817,2]
[349361848,1737136232087,-152.66516287,0.00021817,2]
[349361850,1737136232096,-1382.04845553,0.000219,3]
[349361852,1737136232106,-169.98,0.00021916,2]
[349361854,1737136232120,-645.37996038,0.00021917,3]
[349361856,1737136232129,-500.0,0.00021917,3]
[349361858,1737136232139,-503.12443125,0.00021917,3]
[349361860,1737136232149,-500.0,0.00021917,3]
[349361862,1737136232160,-501.66489959,0.00021917,3]
[349361864,1737136232169,-512.14159201,0.00021917,3]
[349361866,1737136232178,-500.0,0.00021917,3]
[349361868,1737136232190,-500.0,0.00021917,3]
[349361874,1737136232324,-480.67277355,0.00021917,3]
[349361875,1737136232334,-501.62144641,0.00021917,3]
[349361876,1737136232343,-500.0,0.00021917,3]
[349361877,1737136232353,-501.34144771,0.00021917,3]
[349361878,1737136232364,-501.73770138,0.00021917,3]
[349361879,1737136232373,-500.0,0.00021917,3]
[349361880,1737136232382,-619.91604888,0.00021917,3]
[349361881,1737136232391,-352.52380399,0.00021917,3]
[349361882,1737136232400,-500.0,0.00021917,3]
[349361883,1737136232409,-500.0,0.00021917,3]
[349361884,1737136232418,-500.0,0.00021917,3]
[349361886,1737136232427,-500.0,0.00021917,3]
[349361888,1737136232437,-500.0,0.00021917,14]
[349361890,1737136232447,-500.0,0.00021917,3]
[349361892,1737136232456,-500.0,0.00021917,3]
[349361894,1737136232465,-500.0,0.00021917,3]
[349361896,1737136232474,-500.0,0.00021917,3]
[349361898,1737136232484,-500.0,0.00021917,3]
[349361900,1737136232493,-500.0,0.00021917,3]
[349361902,1737136232502,-500.0,0.00021917,3]
[349361904,1737136232511,-500.0,0.00021917,3]
[349361906,1737136232521,-500.0,0.00021917,3]
[349361908,1737136232530,-500.0,0.00021917,3]
[349361910,1737136232539,-500.0,0.00021917,3]
[349361912,1737136232548,-500.0,0.00021917,3]
[349361914,1737136232557,-500.0,0.00021917,3]
[349361916,1737136232567,-639.06,0.00021917,3]
[349361918,1737136232577,-500.0,0.00021917,3]
[349361920,1737136232587,-500.0,0.00021917,3]
[349361922,1737136232596,-500.0,0.00021917,3]
[349361924,1737136232606,-500.0,0.00021917,3]
[349361926,1737136232616,-321.39719765,0.00021917,3]
[349361928,1737136232625,-500.0,0.00021917,3]
[349361929,1737136232634,-500.0,0.00021917,3]
[349361930,1737136232643,-500.0,0.00021917,3]
[349361931,1737136232653,-500.0,0.00021917,3]
[349361933,1737136232662,-500.0,0.00021917,3]
[349361935,1737136232671,-500.0,0.00021917,3]
[349361936,1737136232680,-500.0,0.00021917,3]
[349361938,1737136232689,-500.0,0.00021917,3]
[349361940,1737136232698,-500.0,0.00021917,3]
[349361942,1737136232708,-500.0,0.00021917,3]
[349361944,1737136232717,-500.0,0.00021917,3]
[349361946,1737136232726,-500.0,0.00021917,3]
[349361948,1737136232735,-500.0,0.00021917,3]
[349361950,1737136232744,-500.0,0.00021917,3]
[349361952,1737136232753,-500.0,0.00021917,3]
[349361954,1737136232762,-500.0,0.00021917,3]
[349361956,1737136232772,-546.92947414,0.00021917,3]
[349361958,1737136232781,-500.0,0.00021917,3]
[349361961,1737136232791,-500.0,0.00021917,3]
[349361962,1737136232801,-188.0,0.00021917,2]
[349361964,1737136232812,-500.0,0.00021917,3]
[349361966,1737136232821,-500.0,0.00021917,3]
[349361968,1737136232831,-500.0,0.00021917,3]
[349361970,1737136232840,-500.0,0.00021917,3]
[349361973,1737136232850,-500.0,0.00021917,3]
[349361975,1737136232860,-500.0,0.00021917,3]
[349361976,1737136232869,-500.56508102,0.00021917,3]
[349361978,1737136232878,-593.2,0.00021917,3]
[349361980,1737136232888,-593.2,0.00021917,3]
[349361982,1737136232897,-593.2,0.00021917,3]
[349361985,1737136232906,-593.2,0.00021917,3]
[349361987,1737136232917,-593.2,0.00021917,3]
[349361988,1737136232926,-593.2,0.00021917,3]
[349361990,1737136232936,-593.2,0.00021917,3]
[349361993,1737136232945,-593.2,0.00021917,3]
[349361995,1737136232955,-500.0,0.00021917,3]
[349361997,1737136232966,-500.0,0.00021917,3]
[349361998,1737136232975,-500.0,0.00021917,3]
[349362000,1737136232984,-500.0,0.00021917,3]
[349362002,1737136232994,-500.0,0.00021917,3]
[349362004,1737136233002,-500.0,0.00021917,3]
[349362006,1737136233012,-500.0,0.00021917,3]
[349362008,1737136233021,-500.0,0.00021917,3]
[349362010,1737136233030,-500.0,0.00021917,3]
[349362012,1737136233040,-500.0,0.00021917,3]
[349362014,1737136233049,-500.0,0.00021917,3]
[349362016,1737136233059,-500.0,0.00021917,3]
[349362018,1737136233068,-500.0,0.00021917,3]
[349362020,1737136233077,-500.0,0.00021917,3]
[349362022,1737136233087,-500.0,0.00021917,3]
[349362024,1737136233097,-500.0,0.00021917,3]
[349362026,1737136233107,-500.0,0.00021917,3]
[349362027,1737136233118,-500.0,0.00021917,3]
[349362030,1737136233131,-500.0,0.00021917,3]
[349362031,1737136233140,-500.0,0.00021917,3]
[349362033,1737136233150,-500.0,0.00021917,3]
[349362035,1737136233161,-500.0,0.00021917,3]
[349362037,1737136233171,-390.50428428,0.00021917,3]
[349362039,1737136233180,-500.0,0.00021917,3]
[349362042,1737136233190,-500.0,0.00021917,3]
[349362044,1737136233201,-1349.7,0.00021917,3]
[349362046,1737136233211,-1349.7,0.00021917,3]
[349362048,1737136233221,-1349.7,0.00021917,3]
[349362050,1737136233230,-1349.7,0.00021917,3]
[349362051,1737136233239,-1349.7,0.00021917,3]
[349362053,1737136233248,-1181.1430051,0.00021917,3]
[349362056,1737136233263,-168.5569949,0.00021917,3]
[349362058,1737136233272,-141.1569936,0.00021917,3]
[349362060,1737136233283,-1050.97025906,0.00021917,3]
[349362063,1737136233296,-157.57274734,0.00021917,3]
[349362065,1737136233306,-1349.7,0.00021917,3]
[349362067,1737136233315,-500.0,0.00021917,3]
[349362069,1737136233324,-500.0,0.00021917,3]
[349362071,1737136233333,-500.0,0.00021917,3]
[349362073,1737136233342,-500.0,0.00021917,3]
[349362074,1737136233352,-500.0,0.00021917,3]
[349362077,1737136233364,-500.0,0.00021917,3]
[349362079,1737136233373,-500.0,0.00021917,3]
[349362081,1737136233383,-500.0,0.00021917,3]
[349362083,1737136233392,-500.0,0.00021917,3]
[349362085,1737136233402,-500.0,0.00021917,3]
[349362087,1737136233411,-485.0,0.00021917,3]
[349362089,1737136233420,-454.31441993,0.00021917,3]
[349362091,1737136233429,-500.0,0.00021917,3]
[349362093,1737136233439,-500.0,0.00021917,3]
[349362095,1737136233448,-500.0,0.00021917,3]
[349362096,1737136233458,-500.0,0.00021917,3]
[349362099,1737136233469,-500.0,0.00021917,3]
[349362101,1737136233478,-500.0,0.00021917,3]
[349362102,1737136233488,-500.0,0.00021917,3]
[349362104,1737136233497,-500.0,0.00021917,3]
[349362106,1737136233507,-500.0,0.00021917,3]
[349362108,1737136233516,-500.0,0.00021917,3]
[349362110,1737136233526,-594.73616604,0.00021917,3]
[349362112,1737136233535,-500.0,0.00021917,3]
[349362114,1737136233544,-500.0,0.00021917,3]
[349362116,1737136233554,-500.0,0.00021917,3]
[349362118,1737136233563,-500.0,0.00021917,3]
[349362120,1737136233572,-500.0,0.00021917,3]
[349362122,1737136233581,-500.0,0.00021917,3]
[349362124,1737136233590,-500.0,0.00021917,3]
[349362126,1737136233600,-399.13313392,0.00021917,3]
[349362128,1737136233610,-500.0,0.00021917,3]
[349362130,1737136233620,-500.0,0.00021917,3]
[349362133,1737136233632,-500.0,0.00021917,3]
[349362135,1737136233641,-547.79,0.00021917,2]
[349362136,1737136233650,-500.0,0.00021917,3]
[349362139,1737136233660,-500.0,0.00021917,3]
[349362141,1737136233670,-500.0,0.00021917,3]
[349362143,1737136233680,-500.0,0.00021917,3]
[349362145,1737136233690,-500.0,0.00021917,3]
[349362146,1737136233699,-500.0,0.00021917,3]
[349362149,1737136233708,-500.0,0.00021917,3]
[349362150,1737136233719,-627.10933332,0.00021917,3]
[349362153,1737136233728,-500.0,0.00021917,3]
[349362154,1737136233738,-500.0,0.00021917,3]
[349362156,1737136233747,-500.0,0.00021917,3]
[349362159,1737136233757,-502.80460931,0.00021917,3]
[349362160,1737136233766,-500.0,0.00021917,3]
[349362162,1737136233775,-500.0,0.00021917,3]
[349362164,1737136233784,-500.0,0.00021917,3]
[349362166,1737136233794,-500.0,0.00021917,3]
[349362168,1737136233803,-500.0,0.00021917,3]
[349362171,1737136233813,-500.0,0.00021917,3]
[349362172,1737136233822,-249.90137888,0.00021917,3]
[349362174,1737136233832,-500.0,0.00021917,3]
[349362176,1737136233841,-500.0,0.00021917,2]
[349362179,1737136233851,-157.97345824,0.00021917,3]
[349362598,1737136237948,-342.02654176,0.00021917,3]
[349362600,1737136237959,-500.0,0.00021917,3]
[349362602,1737136237969,-500.0,0.00021917,3]
[349362604,1737136237979,-500.0,0.00021917,3]
[349362606,1737136237988,-500.0,0.00021917,3]
[349362608,1737136237998,-500.0,0.00021917,3]
[349362610,1737136238008,-325.8382404,0.00021917,3]
[349362628,1737136238130,-276.58880441,0.00021917,3]
[349362631,1737136238142,-223.41119559,0.00021917,3]
[349362634,1737136238152,-500.0,0.00021917,3]
[349362637,1737136238162,-500.0,0.00021917,3]
[349362640,1737136238172,-500.0,0.00021917,3]
[349362642,1737136238181,-500.0,0.00021917,3]
[349362644,1737136238190,-500.0,0.00021917,3]
[349362646,1737136238201,-500.0,0.00021917,3]
[349362648,1737136238210,-235.21339992,0.00021917,3]
[349362650,1737136238223,-446.20833079,0.00021917,3]
[349362653,1737136238236,-1394.18253934,0.00021917,3]
[349362750,1737136239987,-3435.80613725,0.00021917,3]
[349362752,1737136240026,-1951.9495927,0.00021917,3]
[349362754,1737136240036,-500.0,0.00021917,3]
[349362756,1737136240045,-500.0,0.00021917,3]
[349362758,1737136240056,-838.12,0.00021917,3]
[349362760,1737136240065,-500.0,0.00021917,3]
[349362762,1737136240075,-301.95481305,0.00021917,3]
[349362764,1737136240084,-500.0,0.00021917,3]
[349362766,1737136240094,-500.0,0.00021917,3]
[349362768,1737136240104,-500.0,0.00021917,3]
[349362771,1737136240117,-718.9,0.00021917,3]
[349362772,1737136240126,-2168.66,0.00021917,3]
[349362775,1737136240135,-500.0,0.00021917,3]
[349362776,1737136240145,-1139.95,0.00021917,3]
[349362778,1737136240156,-500.0,0.00021917,3]
[349362780,1737136240165,-500.0,0.00021917,3]
[349362782,1737136240174,-500.0,0.00021917,3]
[349362784,1737136240184,-500.0,0.00021917,3]
[349362787,1737136240195,-500.0,0.00021917,3]
[349362788,1737136240206,-1099.07,0.00021917,3]
[349362790,1737136240215,-500.0,0.00021917,3]
[349362793,1737136240225,-500.0,0.00021917,3]
[349362794,1737136240235,-500.0,0.00021917,3]
[349362796,1737136240244,-500.0,0.00021917,3]
[349362798,1737136240254,-500.0,0.00021917,3]
[349362800,1737136240263,-500.0,0.00021917,3]
[349362802,1737136240271,-2721.87,0.00021917,3]
[349362804,1737136240281,-500.0,0.00021917,3]
[349362806,1737136240290,-689.01,0.00021917,3]
[349362808,1737136240300,-500.0,0.00021917,3]
[349362810,1737136240309,-500.0,0.00021917,3]
[349362812,1737136240319,-783.0,0.00021917,3]
[349362814,1737136240328,-500.0,0.00021917,3]
[349362816,1737136240337,-511.32,0.00021917,3]
[349362818,1737136240347,-500.0,0.00021917,3]
[349362820,1737136240356,-500.0,0.00021917,3]
[349362822,1737136240366,-500.0,0.00021917,3]
[349362824,1737136240375,-500.0,0.00021917,3]
[349362826,1737136240385,-500.0,0.00021917,3]
[349362828,1737136240394,-500.0,0.00021917,3]
[349362829,1737136240403,-532.21681868,0.00021917,3]
[349362831,1737136240412,-500.0,0.00021917,3]
[349362833,1737136240421,-500.0,0.00021917,3]
[349362835,1737136240431,-500.0,0.00021917,3]
[349362837,1737136240440,-500.0,0.00021917,3]
[349362839,1737136240450,-8251.24,0.00021917,3]
[349362841,1737136240459,-500.0,0.00021917,3]
[349362843,1737136240468,-1051.23,0.00021917,3]
[349362845,1737136240477,-500.0,0.00021917,3]
[349362847,1737136240486,-500.0,0.00021917,3]
[349362849,1737136240495,-500.0,0.00021917,3]
[349362851,1737136240504,-500.0,0.00021917,3]
[349362853,1737136240514,-654.46,0.00021917,3]
[349362855,1737136240523,-654.46,0.00021917,3]
[349362857,1737136240533,-654.46,0.00021917,3]
[349362859,1737136240543,-654.46,0.00021917,3]
[349362861,1737136240552,-654.46,0.00021917,3]
[349362863,1737136240561,-654.46,0.00021917,3]
[349362865,1737136240571,-654.46,0.00021917,3]
[349362867,1737136240581,-654.46,0.00021917,3]
[349362869,1737136240590,-292.93884669,0.00021917,3]
[349362871,1737136240601,-500.0,0.00021917,3]
[349362874,1737136240610,-500.0,0.00021917,3]
[349362875,1737136240620,-500.0,0.00021917,3]
[349362877,1737136240629,-500.0,0.00021917,3]
[349362880,1737136240639,-500.0,0.00021917,3]
[349362882,1737136240648,-500.0,0.00021917,3]
[349362884,1737136240658,-2492.22,0.00021917,3]
[349362885,1737136240667,-552.05,0.00021917,3]
[349362887,1737136240677,-500.0,0.00021917,3]
[349362889,1737136240687,-500.0,0.00021917,3]
[349362891,1737136240696,-500.26586215,0.00021917,3]
[349362893,1737136240705,-500.0,0.00021917,3]
[349362895,1737136240714,-500.0,0.00021917,3]
[349362897,1737136240724,-500.0,0.00021917,3]
[349362899,1737136240734,-152.66516286,0.00021954,2]
[349362901,1737136240743,-500.0,0.00021973,2]
[349362903,1737136240753,-500.0,0.00021973,2]
[349362905,1737136240762,-500.0,0.00021973,2]
[349362907,1737136240772,-500.0,0.00021973,2]
[349362909,1737136240782,-500.0,0.00021973,2]
[349362911,1737136240791,-500.0,0.00021973,2]
[349362913,1737136240800,-500.0,0.00021973,2]
[349362915,1737136240809,-357.99580065,0.00021973,2]
[349362917,1737136240819,-654.46,0.00021999,3]
[349362919,1737136240828,-207.0,0.00022,2]
[349362921,1737136240837,-1000.0,0.00022,22]
[349362923,1737136240847,-592.0913722,0.00022,6]
[349363215,1737136245912,-1347.52,0.00021917,3]
[349363216,1737136245924,-169.17,0.00021917,3]
[349363217,1737136245934,-745.01505106,0.00021917,3]
[349363251,1737136591828,160.0,0.00024723,120]
[349363252,1737136651344,160.0,0.00022638,120]
[349363253,1737136691320,204.317754,0.0002411,120]
[349363254,1737136711799,160.0,0.00024575,120]
[349363258,1737136771325,160.0,0.00024363,120]
[349363259,1737136803194,196.85789057,0.00025,120]
[349363260,1737136891889,160.0,0.00022919,120]
[349363261,1737136909491,159.611892,0.00013973,2]
[349363263,1737136951381,160.0,0.00023607,120]
[349363264,1737137011480,160.0,0.00024632,120]
[349363265,1737137072646,160.0,0.00023891,120]
[349363266,1737137133199,160.0,0.00022689,120]
[349363267,1737137191900,160.0,0.00024107,120]
[349363276,1737137251426,160.0,0.00022732,120]
[349363278,1737137311719,160.0,0.0002305,120]
[349363281,1737137371333,160.0,0.00024103,120]
[349363294,1737137431752,160.0,0.00023989,120]
[349363332,1737137432180,-351.39842988,0.000187,2]
[349363334,1737137432189,-11215.12073379,0.00019405,2]
[349363336,1737137432199,-727.3936098,0.00019505,2]
[349363338,1737137432209,-94.57448707,0.00019864,2]
[349363347,1737137432297,-405.42551293,0.00019864,2]
[349363349,1737137432307,-1880.0,0.00020044,2]
[349363351,1737137432317,-300.0,0.00020401,2]
[349363354,1737137432327,-7340.57448708,0.00020402,2]
[349363430,1737137438142,-17559.42551292,0.00020402,2]
[349363432,1737137438152,-415.18268733,0.00020508,2]
[349363435,1737137438162,-532.2417461,0.00020608,2]
[349363437,1737137438172,-204.307179,0.00020737,2]
[349363439,1737137438182,-15633.535924,0.00020773,2]
[349363441,1737137438192,-415.18268731,0.00020954,2]
[349363443,1737137438202,-159.611892,0.00021209,2]
[349363445,1737137438212,-415.18268731,0.00021401,2]
[349363447,1737137438221,-10539.00224901,0.00021447,2]
[349363449,1737137438231,-1880.0,0.00021647,4]
[349363451,1737137438240,-2286.0,0.00021748,2]
[349363453,1737137438250,-563.3586571,0.00021808,2]
[349363455,1737137438260,-159.09537386,0.00021816,2]
[349363457,1737137438270,-10539.00224902,0.00021845,2]
[349363459,1737137438280,-415.18268731,0.00021847,2]
[349363461,1737137438290,-159.09537386,0.0002185,2]
[349363463,1737137438299,-159.09537386,0.00021885,2]
[349363465,1737137438309,-2156.77371141,0.000219,3]
[349363467,1737137438319,-500.0,0.00021914,2]
[349363469,1737137438328,-500.0,0.00021914,2]
[349363471,1737137438338,-500.0,0.00021914,2]
[349363474,1737137438348,-500.0,0.00021914,2]
[349363477,1737137438357,-500.0,0.00021914,2]
[349363480,1737137438367,-500.0,0.00021914,2]
[349363483,1737137438378,-500.0,0.00021914,2]
[349363487,1737137438388,-500.0,0.00021914,2]
[349363489,1737137438397,-500.39592519,0.00021914,2]
[349363492,1737137438409,-824.32718339,0.00021914,2]
[349363495,1737137438418,-500.0,0.00021914,2]
[349363498,1737137438428,-500.0,0.00021914,2]
[349363501,1737137438437,-500.0,0.00021914,2]
[349363505,1737137438447,-500.0,0.00021914,2]
[349363508,1737137438458,-500.0,0.00021914,2]
[349363511,1737137438472,-619.39107247,0.00021914,2]
[349363514,1737137438482,-307.74821219,0.00021914,2]
[349363517,1737137438493,-500.0,0.00021914,2]
[349363521,1737137438503,-824.32718339,0.00021914,2]
[349363524,1737137438515,-500.0,0.00021914,2]
[349363527,1737137438524,-390.29588341,0.00021914,2]
[349363530,1737137438535,-500.0,0.00021914,2]
[349363533,1737137438546,-500.0,0.00021914,2]
[349363536,1737137438556,-500.0,0.00021914,2]
[349363539,1737137438565,-500.0,0.00021914,2]
[349363541,1737137438575,-824.32718339,0.00021914,2]
[349363543,1737137438585,-187.57151708,0.00021914,2]
[349363545,1737137438595,-500.0,0.00021914,2]
[349363547,1737137438605,-500.0,0.00021914,2]
[349363549,1737137438614,-500.0,0.00021914,2]
[349363551,1737137438624,-824.32718339,0.00021914,2]
[349363552,1737137438634,-500.0,0.00021914,2]
[349363554,1737137438643,-500.0,0.00021914,2]
[349363556,1737137438654,-500.0,0.00021914,2]
[349363558,1737137438663,-824.32718339,0.00021914,2]
[349363560,1737137438673,-500.0,0.00021914,2]
[349363562,1737137438683,-500.0,0.00021914,2]
[349363564,1737137438692,-500.0,0.00021914,2]
[349363566,1737137438702,-500.0,0.00021914,2]
[349363568,1737137438712,-632.13314375,0.00021914,2]
[349363570,1737137438721,-824.32718339,0.00021914,2]
[349363572,1737137438731,-500.0,0.00021914,2]
[349363574,1737137438741,-500.0,0.00021914,2]
[349363576,1737137438751,-500.0,0.00021914,2]
[349363578,1737137438762,-824.32718339,0.00021914,2]
[349363580,1737137438772,-500.0,0.00021914,2]
[349363582,1737137438783,-500.0,0.00021914,2]
[349363584,1737137438794,-500.0,0.00021914,2]
[349363586,1737137438805,-824.32718339,0.00021914,2]
[349363588,1737137438815,-495.94552389,0.00021914,2]
[349363590,1737137438825,-500.0,0.00021914,2]
[349363592,1737137438835,-500.0,0.00021914,2]
[349363594,1737137438845,-824.32718339,0.00021914,2]
[349363596,1737137438857,-500.0,0.00021914,2]
[349363598,1737137438867,-500.0,0.00021914,2]
[349363601,1737137438879,-824.32718339,0.00021914,2]
[349363603,1737137438890,-500.0,0.00021914,2]
[349363605,1737137438899,-422.2236929,0.00021914,2]
[349363607,1737137438915,-402.10349049,0.00021914,2]
[349363609,1737137438925,-500.0,0.00021914,2]
[349363611,1737137438935,-500.0,0.00021914,2]
[349363613,1737137438945,-500.0,0.00021914,2]
[349363615,1737137438955,-500.0,0.00021914,2]
[349363618,1737137438966,-500.0,0.00021914,2]
[349363620,1737137438979,-824.32718339,0.00021914,2]
[349363622,1737137438992,-500.0,0.00021914,2]
[349363625,1737137439005,-500.0,0.00021914,2]
[349363627,1737137439019,-824.32718339,0.00021914,2]
[349363629,1737137439030,-500.0,0.00021914,2]
[349363631,1737137439042,-500.0,0.00021914,2]
[349363634,1737137439053,-353.46216273,0.00021914,2]
[349363760,1737137440398,-225.31149674,0.00021748,2]
[349363762,1737137440412,-146.53783727,0.00021914,2]
[349363765,1737137440424,-471.30449657,0.00021914,2]
[349364048,1737137443106,-395.0,0.00021748,2]
[349364050,1737137443118,-353.02268682,0.00021914,2]
[349364052,1737137443130,-188.89416114,0.00021914,2]
[349364055,1737137443145,-311.10583886,0.00021914,2]
[349364057,1737137443156,-824.32718339,0.00021914,2]
[349364059,1737137443166,-500.0,0.00021914,2]
[349364061,1737137443177,-649.73494981,0.00021914,2]
[349364063,1737137443187,-824.32718339,0.00021914,2]
[349364065,1737137443199,-500.0,0.00021914,2]
[349364068,1737137443210,-824.32718339,0.00021914,2]
[349364070,1737137443220,-500.0,0.00021914,2]
[349364072,1737137443231,-824.32718339,0.00021914,2]
[349364074,1737137443242,-500.0,0.00021914,2]
[349364076,1737137443253,-824.32718339,0.00021914,2]
[349364078,1737137443264,-500.0,0.00021914,2]
[349364081,1737137443275,-824.32718339,0.00021914,2]
[349364083,1737137443286,-500.0,0.00021914,2]
[349364085,1737137443297,-824.32718339,0.00021914,2]
[349364087,1737137443309,-500.0,0.00021914,2]
[349364089,1737137443320,-824.32718339,0.00021914,2]
[349364092,1737137443331,-824.32718339,0.00021914,2]
[349364094,1737137443342,-824.32718339,0.00021914,2]
[349364096,1737137443353,-824.32718339,0.00021914,2]
[349364098,1737137443364,-824.32718339,0.00021914,2]
[349364100,1737137443375,-824.32718339,0.00021914,2]
[349364102,1737137443386,-824.32718339,0.00021914,2]
[349364105,1737137443396,-824.32718339,0.00021914,2]
[349364107,1737137443408,-824.32718339,0.00021914,2]
[349364109,1737137443419,-824.32718339,0.00021914,2]
[349364111,1737137443430,-824.32718339,0.00021914,2]
[349364113,1737137443441,-824.32718339,0.00021914,2]
[349364116,1737137443452,-824.32718339,0.00021914,2]
[349364118,1737137443463,-824.32718339,0.00021914,2]
[349364120,1737137443478,-824.32718339,0.00021914,2]
[349364122,1737137443489,-824.32718339,0.00021914,2]
[349364124,1737137443501,-824.32718339,0.00021914,2]
[349364126,1737137443513,-824.32718339,0.00021914,2]
[349364128,1737137443524,-500.0,0.00021914,2]
[349364131,1737137443535,-824.32718339,0.00021914,2]
[349364133,1737137443548,-824.32718339,0.00021914,2]
[349364135,1737137443559,-824.32718339,0.00021914,2]
[349364137,1737137443569,-824.32718339,0.00021914,2]
[349364139,1737137443580,-824.32718339,0.00021914,2]
[349364141,1737137443592,-824.32718339,0.00021914,2]
[349364143,1737137443605,-824.32718339,0.00021914,2]
[349364146,1737137443616,-824.32718339,0.00021914,2]
[349364148,1737137443627,-69810.4280407,0.00021915,5]
[349364150,1737137443637,-22085.2816008,0.00021915,5]
[349364152,1737137443648,-500.0,0.00021916,7]
[349364154,1737137443660,-499.99237989,0.00021917,2]
[349364156,1737137443672,-500.0,0.00021917,3]
[349364158,1737137443683,-500.0,0.00021917,3]
[349364161,1737137443693,-500.0,0.00021917,3]
[349364163,1737137443704,-233.53992962,0.00021917,3]
[349364165,1737137443715,-500.0,0.00021917,3]
[349364167,1737137443726,-500.0,0.00021917,3]
[349364169,1737137443737,-500.0,0.00021917,3]
[349364171,1737137443748,-500.0,0.00021917,3]
[349364173,1737137443759,-500.0,0.00021917,3]
[349364175,1737137443768,-500.0,0.00021917,3]
[349364178,1737137443777,-500.0,0.00021917,3]
[349364179,1737137443787,-500.0,0.00021917,3]
[349364190,1737137443925,-500.0,0.00021917,3]
[349364191,1737137443938,-500.0,0.00021917,3]
[349364192,1737137443947,-500.0,0.00021917,3]
[349364193,1737137443956,-405.47164294,0.00021917,3]
[349364194,1737137443969,-94.52835706,0.00021917,3]
[349364195,1737137443978,-500.0,0.00021917,3]
[349364196,1737137443987,-500.0,0.00021917,3]
[349364197,1737137444003,-500.0,0.00021917,3]
[349364198,1737137444013,-500.0,0.00021917,3]
[349364199,1737137444022,-184.83942727,0.00021917,3]
[349364200,1737137444031,-500.0,0.00021917,3]
[349364201,1737137444040,-500.0,0.00021917,3]
[349364202,1737137444050,-500.0,0.00021917,3]
[349364204,1737137444059,-500.0,0.00021917,3]
[349364206,1737137444069,-500.0,0.00021917,3]
[349364208,1737137444078,-500.0,0.00021917,3]
[349364210,1737137444087,-500.0,0.00021917,3]
[349364212,1737137444097,-500.45340423,0.00021917,3]
[349364214,1737137444107,-500.0,0.00021917,3]
[349364216,1737137444116,-500.0,0.00021917,3]
[349364218,1737137444127,-500.0,0.00021917,2]
[349364220,1737137444137,-500.65665988,0.00021917,3]
[349364222,1737137444147,-500.0,0.00021917,3]
[349364224,1737137444160,-500.0,0.00021917,3]
[349364226,1737137444170,-188.0,0.00021917,2]
[349364228,1737137444180,-500.0,0.00021917,3]
[349364230,1737137444190,-500.0,0.00021917,3]
[349364232,1737137444200,-470.83355585,0.00021917,3]
[349364234,1737137444211,-500.0,0.00021917,3]
[349364236,1737137444220,-500.0,0.00021917,3]
[349364238,1737137444230,-500.0,0.00021917,3]
[349364240,1737137444240,-502.22519618,0.00021917,3]